[Event "Early Titled Tuesday Blitz | February 8 2022"]
[White "Tuleyeva-Aketayeva, Dana"]
[Black "Niyazgulova, Marina"]
[WhiteFideId "13701932"]
[BlackFideId "24142573"]
[WhiteElo "1944"]
[BlackElo "2075"]
[Result "0-1"]
[Round "10"]
[TimeControl "180+1"]
[Date "2022.02.08"]
[WhiteClock "0:00:02"]
[BlackClock "0:00:11"]

1. d4 {[%clk 0:00:32]}  d5 {[%clk 0:02:59]} 2. Nf3 {[%clk 0:00:29]}  Nf6 {[%clk 0:02:58]} 3. g3 {[%clk 0:00:30]}  c6 {[%clk 0:02:55]} 4. Bg2 {[%clk 0:00:30]}  Bf5 {[%clk 0:02:53]} 5. O-O {[%clk 0:00:30]}  h6 {[%clk 0:02:49]} 6. Nbd2 {[%clk 0:00:30]}  e6 {[%clk 0:02:49]} 7. c4 {[%clk 0:00:31]}  Bd6 {[%clk 0:02:43]} 8. Re1 {[%clk 0:00:31]}  O-O {[%clk 0:02:28]} 9. Nh4 {[%clk 0:00:31]}  Bh7 {[%clk 0:02:20]} 10. e4 {[%clk 0:00:31]}  dxe4 {[%clk 0:02:17]} 11. Nxe4 {[%clk 0:00:31]}  Bb4 {[%clk 0:02:13]} 12. Bd2 {[%clk 0:00:20]}  Bxd2 {[%clk 0:01:54]} 13. Qxd2 {[%clk 0:00:21]}  Nbd7 {[%clk 0:01:54]} 14. Rad1 {[%clk 0:00:19]}  Qc7 {[%clk 0:01:49]} 15. d5 {[%clk 0:00:17]}  cxd5 {[%clk 0:01:35]} 16. Nxf6+ {[%clk 0:00:17]}  Nxf6 {[%clk 0:01:33]} 17. cxd5 {[%clk 0:00:17]}  exd5 {[%clk 0:01:29]} 18. Rc1 {[%clk 0:00:17]}  Qd7 {[%clk 0:01:24]} 19. Qf4 {[%clk 0:00:12]}  Rac8 {[%clk 0:01:02]} 20. Qd4 {[%clk 0:00:10]}  b6 {[%clk 0:00:54]} 21. Nf3 {[%clk 0:00:08]}  Qd6 {[%clk 0:00:48]} 22. Nd2 {[%clk 0:00:06]}  Rxc1 {[%clk 0:00:47]} 23. Rxc1 {[%clk 0:00:06]}  Re8 {[%clk 0:00:47]} 24. Nb3 {[%clk 0:00:05]}  Be4 {[%clk 0:00:46]} 25. f3 {[%clk 0:00:04]}  Bg6 {[%clk 0:00:46]} 26. Qc3 {[%clk 0:00:05]}  Rd8 {[%clk 0:00:39]} 27. Nd4 {[%clk 0:00:04]}  Nd7 {[%clk 0:00:35]} 28. Qc7 {[%clk 0:00:04]}  Nc5 {[%clk 0:00:27]} 29. Qxd6 {[%clk 0:00:04]}  Rxd6 {[%clk 0:00:27]} 30. b4 {[%clk 0:00:04]}  Nd3 {[%clk 0:00:23]} 31. Rc7 {[%clk 0:00:05]}  Nxb4 {[%clk 0:00:21]} 32. Rxa7 {[%clk 0:00:05]}  Nc6 {[%clk 0:00:19]} 33. Nxc6 {[%clk 0:00:05]}  Rxc6 {[%clk 0:00:19]} 34. Ra8+ {[%clk 0:00:06]}  Kh7 {[%clk 0:00:19]} 35. f4 {[%clk 0:00:07]}  Be4 {[%clk 0:00:19]} 36. Bxe4+ {[%clk 0:00:07]}  dxe4 {[%clk 0:00:20]} 37. Re8 {[%clk 0:00:07]}  f5 {[%clk 0:00:20]} 38. Rf8 {[%clk 0:00:07]}  Kg6 {[%clk 0:00:20]} 39. Ra8 {[%clk 0:00:07]}  Rc1+ {[%clk 0:00:19]} 40. Kg2 {[%clk 0:00:07]}  Rc2+ {[%clk 0:00:20]} 41. Kg1 {[%clk 0:00:08]}  Kh5 {[%clk 0:00:19]} 42. Ra4 {[%clk 0:00:07]}  Kg4 {[%clk 0:00:19]} 43. Ra3 {[%clk 0:00:06]}  Kh3 {[%clk 0:00:19]} 44. Kf1 {[%clk 0:00:04]}  Kxh2 {[%clk 0:00:18]} 45. Ke1 {[%clk 0:00:04]}  Kg2 {[%clk 0:00:18]} 46. Kd1 {[%clk 0:00:05]}  Rb2 {[%clk 0:00:18]} 47. Kc1 {[%clk 0:00:05]}  Rf2 {[%clk 0:00:18]} 48. Rb3 {[%clk 0:00:05]}  Rf3 {[%clk 0:00:18]} 49. Rxb6 {[%clk 0:00:05]}  e3 {[%clk 0:00:18]} 50. Re6 {[%clk 0:00:04]}  Kf1 {[%clk 0:00:18]} 51. Kd1 {[%clk 0:00:04]}  Rxg3 {[%clk 0:00:17]} 52. Re5 {[%clk 0:00:03]}  h5 {[%clk 0:00:16]} 53. a4 {[%clk 0:00:03]}  Kf2 {[%clk 0:00:11]} 54. a5 {[%clk 0:00:03]}  Rg6 {[%clk 0:00:11]} 55. Rxf5 {[%clk 0:00:02]}  e2+ {[%clk 0:00:11]} 56. Kc2 {[%clk 0:00:02]}  e1=Q {[%clk 0:00:11]} 0-1


[Site "https://www.chess.com"]

[Event "Early Titled Tuesday Blitz | February 8 2022"]
[White "Turzo, Attila"]
[Black "Yushko, Olga"]
[WhiteFideId "704954"]
[BlackFideId "14114500"]
[WhiteElo "2468"]
[BlackElo "2028"]
[Result "1-0"]
[Round "10"]
[TimeControl "180+1"]
[Date "2022.02.08"]
[WhiteClock "0:01:12"]
[BlackClock "0:00:17"]

1. d4 {[%clk 0:03:00]}  e6 {[%clk 0:02:59]} 2. c4 {[%clk 0:03:00]}  f5 {[%clk 0:02:59]} 3. g3 {[%clk 0:02:59]}  Nf6 {[%clk 0:03:00]} 4. Bg2 {[%clk 0:03:00]}  Be7 {[%clk 0:03:01]} 5. Nf3 {[%clk 0:03:00]}  O-O {[%clk 0:03:00]} 6. O-O {[%clk 0:03:01]}  d6 {[%clk 0:03:00]} 7. Nc3 {[%clk 0:02:58]}  Qe8 {[%clk 0:03:00]} 8. Re1 {[%clk 0:02:58]}  Ne4 {[%clk 0:03:00]} 9. Nxe4 {[%clk 0:02:55]}  fxe4 {[%clk 0:03:01]} 10. Nd2 {[%clk 0:02:55]}  d5 {[%clk 0:03:00]} 11. f3 {[%clk 0:02:56]}  exf3 {[%clk 0:02:59]} 12. exf3 {[%clk 0:02:54]}  Qg6 {[%clk 0:02:56]} 13. f4 {[%clk 0:02:51]}  c6 {[%clk 0:02:54]} 14. Nf3 {[%clk 0:02:47]}  Bf6 {[%clk 0:02:48]} 15. b3 {[%clk 0:02:36]}  Na6 {[%clk 0:02:38]} 16. Bb2 {[%clk 0:02:29]}  Bd7 {[%clk 0:02:34]} 17. Qd2 {[%clk 0:02:22]}  Rae8 {[%clk 0:02:27]} 18. Ne5 {[%clk 0:02:13]}  Bxe5 {[%clk 0:02:24]} 19. Rxe5 {[%clk 0:02:14]}  Bc8 {[%clk 0:02:18]} 20. Rae1 {[%clk 0:02:12]}  Nb8 {[%clk 0:02:16]} 21. Bh3 {[%clk 0:02:09]}  Qf6 {[%clk 0:02:06]} 22. Ba3 {[%clk 0:02:02]}  Rf7 {[%clk 0:02:02]} 23. f5 {[%clk 0:02:02]}  Nd7 {[%clk 0:01:52]} 24. fxe6 {[%clk 0:01:41]}  Nxe5 {[%clk 0:01:45]} 25. dxe5 {[%clk 0:01:41]}  Qf3 {[%clk 0:01:36]} 26. exf7+ {[%clk 0:01:40]}  Qxf7 {[%clk 0:01:36]} 27. Bxc8 {[%clk 0:01:37]}  Rxc8 {[%clk 0:01:36]} 28. e6 {[%clk 0:01:36]}  Qh5 {[%clk 0:01:31]} 29. cxd5 {[%clk 0:01:31]}  cxd5 {[%clk 0:01:30]} 30. e7 {[%clk 0:01:31]}  h6 {[%clk 0:01:22]} 31. Rf1 {[%clk 0:01:19]}  Re8 {[%clk 0:00:55]} 32. Qd3 {[%clk 0:01:17]}  g5 {[%clk 0:00:17]} 33. Rf8+ {[%clk 0:01:12]}  Kg7 {[%clk 0:00:17]} 34. Bb2+ {[%clk 0:01:12]} 1-0


[Site "https://www.chess.com"]

[Event "Early Titled Tuesday Blitz | February 8 2022"]
[White "Urazayev, Arystanbek"]
[Black "Kosteniuk, Alexandra"]
[WhiteFideId "13709810"]
[BlackFideId "4128125"]
[WhiteElo "2321"]
[BlackElo "2469"]
[Result "1/2-1/2"]
[Round "10"]
[TimeControl "180+1"]
[Date "2022.02.08"]
[WhiteClock "0:00:13"]
[BlackClock "0:00:04"]

1. e4 {[%clk 0:03:00]}  e5 {[%clk 0:03:00]} 2. Nf3 {[%clk 0:03:01]}  Nc6 {[%clk 0:03:00]} 3. Bb5 {[%clk 0:03:01]}  a6 {[%clk 0:03:00]} 4. Ba4 {[%clk 0:03:02]}  Nf6 {[%clk 0:03:00]} 5. d3 {[%clk 0:03:03]}  Bc5 {[%clk 0:02:56]} 6. c3 {[%clk 0:03:02]}  b5 {[%clk 0:02:51]} 7. Bb3 {[%clk 0:03:01]}  d6 {[%clk 0:02:52]} 8. O-O {[%clk 0:03:01]}  h6 {[%clk 0:02:47]} 9. d4 {[%clk 0:03:00]}  Bb6 {[%clk 0:02:47]} 10. Re1 {[%clk 0:02:58]}  O-O {[%clk 0:02:45]} 11. h3 {[%clk 0:02:56]}  Re8 {[%clk 0:02:41]} 12. Be3 {[%clk 0:02:40]}  exd4 {[%clk 0:02:18]} 13. Nxd4 {[%clk 0:02:20]}  Na5 {[%clk 0:02:18]} 14. Bc2 {[%clk 0:02:01]}  Bb7 {[%clk 0:02:14]} 15. Nd2 {[%clk 0:01:51]}  Nxe4 {[%clk 0:02:05]} 16. Bxe4 {[%clk 0:01:45]}  Bxe4 {[%clk 0:02:04]} 17. Bxh6 {[%clk 0:01:42]}  Bg6 {[%clk 0:01:56]} 18. Be3 {[%clk 0:01:39]}  c5 {[%clk 0:01:46]} 19. N4f3 {[%clk 0:01:39]}  d5 {[%clk 0:01:46]} 20. a3 {[%clk 0:01:21]}  d4 {[%clk 0:01:39]} 21. cxd4 {[%clk 0:01:18]}  cxd4 {[%clk 0:01:39]} 22. Bf4 {[%clk 0:01:17]}  Qd5 {[%clk 0:01:36]} 23. Ne5 {[%clk 0:01:13]}  Bf5 {[%clk 0:01:26]} 24. Qh5 {[%clk 0:01:11]}  Be6 {[%clk 0:01:09]} 25. Qh4 {[%clk 0:01:08]}  d3 {[%clk 0:00:59]} 26. Ndf3 {[%clk 0:01:06]}  Bf5 {[%clk 0:00:56]} 27. Rad1 {[%clk 0:00:52]}  Nc4 {[%clk 0:00:52]} 28. Qg5 {[%clk 0:00:22]}  Bh7 {[%clk 0:00:43]} 29. Nxd3 {[%clk 0:00:20]}  Rxe1+ {[%clk 0:00:36]} 30. Nfxe1 {[%clk 0:00:14]}  Rd8 {[%clk 0:00:30]} 31. b3 {[%clk 0:00:10]}  Nxa3 {[%clk 0:00:27]} 32. Qxd5 {[%clk 0:00:08]}  Rxd5 {[%clk 0:00:26]} 33. Nb2 {[%clk 0:00:07]}  Rxd1 {[%clk 0:00:25]} 34. Nxd1 {[%clk 0:00:08]}  Bd4 {[%clk 0:00:24]} 35. Be3 {[%clk 0:00:08]}  Bf6 {[%clk 0:00:23]} 36. Bc5 {[%clk 0:00:08]}  Nc2 {[%clk 0:00:24]} 37. Kf1 {[%clk 0:00:07]}  Na1 {[%clk 0:00:22]} 38. b4 {[%clk 0:00:08]}  Nb3 {[%clk 0:00:22]} 39. Bd6 {[%clk 0:00:06]}  Nd2+ {[%clk 0:00:20]} 40. Ke2 {[%clk 0:00:07]}  Ne4 {[%clk 0:00:20]} 41. Bc7 {[%clk 0:00:04]}  Be7 {[%clk 0:00:18]} 42. Ba5 {[%clk 0:00:04]}  Bf5 {[%clk 0:00:13]} 43. Nd3 {[%clk 0:00:04]}  Be6 {[%clk 0:00:13]} 44. Ne3 {[%clk 0:00:04]}  f6 {[%clk 0:00:12]} 45. f3 {[%clk 0:00:05]}  Nc3+ {[%clk 0:00:11]} 46. Kd2 {[%clk 0:00:05]}  Nd5 {[%clk 0:00:11]} 47. Nxd5 {[%clk 0:00:05]}  Bxd5 {[%clk 0:00:12]} 48. Nc5 {[%clk 0:00:04]}  Bxc5 {[%clk 0:00:11]} 49. bxc5 {[%clk 0:00:05]}  Kf7 {[%clk 0:00:11]} 50. Kc3 {[%clk 0:00:05]}  Ke6 {[%clk 0:00:11]} 51. Kd4 {[%clk 0:00:06]}  Bc6 {[%clk 0:00:11]} 52. h4 {[%clk 0:00:06]}  g6 {[%clk 0:00:11]} 53. Bc3 {[%clk 0:00:06]}  f5 {[%clk 0:00:11]} 54. Bb4 {[%clk 0:00:06]}  Bb7 {[%clk 0:00:10]} 55. Ba5 {[%clk 0:00:06]}  Bc6 {[%clk 0:00:10]} 56. Bb4 {[%clk 0:00:07]}  Bd5 {[%clk 0:00:10]} 57. Bd2 {[%clk 0:00:06]}  Bc4 {[%clk 0:00:09]} 58. Ba5 {[%clk 0:00:06]}  Bf1 {[%clk 0:00:08]} 59. g4 {[%clk 0:00:07]}  fxg4 {[%clk 0:00:08]} 60. fxg4 {[%clk 0:00:08]}  Bg2 {[%clk 0:00:08]} 61. h5 {[%clk 0:00:08]}  gxh5 {[%clk 0:00:08]} 62. gxh5 {[%clk 0:00:09]}  Kf5 {[%clk 0:00:03]} 63. h6 {[%clk 0:00:08]}  Kg6 {[%clk 0:00:03]} 64. Bd2 {[%clk 0:00:08]}  Bf3 {[%clk 0:00:02]} 65. Ke5 {[%clk 0:00:08]}  b4 {[%clk 0:00:02]} 66. Kd6 {[%clk 0:00:08]}  b3 {[%clk 0:00:03]} 67. Bc1 {[%clk 0:00:08]}  a5 {[%clk 0:00:02]} 68. c6 {[%clk 0:00:08]}  Bxc6 {[%clk 0:00:02]} 69. Kxc6 {[%clk 0:00:09]}  b2 {[%clk 0:00:02]} 70. Bxb2 {[%clk 0:00:09]}  Kxh6 {[%clk 0:00:03]} 71. Kb5 {[%clk 0:00:10]}  Kg6 {[%clk 0:00:03]} 72. Ka4 {[%clk 0:00:11]}  Kf5 {[%clk 0:00:04]} 73. Bc3 {[%clk 0:00:12]}  Kg6 {[%clk 0:00:04]} 74. Bxa5 {[%clk 0:00:13]} 1/2-1/2


[Site "https://www.chess.com"]

[Event "Early Titled Tuesday Blitz | February 8 2022"]
[White "Van den Dikkenberg, Erik"]
[Black "Stankovic, Ivan G"]
[WhiteFideId "1005880"]
[BlackFideId "902837"]
[WhiteElo "2118"]
[BlackElo "2195"]
[Result "0-1"]
[Round "10"]
[TimeControl "180+1"]
[Date "2022.02.08"]
[WhiteClock "0:00:12"]
[BlackClock "0:00:14"]

1. e4 {[%clk 0:03:00]}  c5 {[%clk 0:02:56]} 2. Nc3 {[%clk 0:03:00]}  Nc6 {[%clk 0:02:56]} 3. f4 {[%clk 0:03:00]}  g6 {[%clk 0:02:53]} 4. Nf3 {[%clk 0:03:00]}  Bg7 {[%clk 0:02:53]} 5. Bc4 {[%clk 0:03:00]}  d6 {[%clk 0:02:49]} 6. O-O {[%clk 0:03:00]}  Nf6 {[%clk 0:02:49]} 7. d3 {[%clk 0:03:00]}  O-O {[%clk 0:02:48]} 8. Qe1 {[%clk 0:03:00]}  Nd4 {[%clk 0:02:37]} 9. Nxd4 {[%clk 0:03:00]}  cxd4 {[%clk 0:02:36]} 10. Ne2 {[%clk 0:03:00]}  e5 {[%clk 0:02:20]} 11. Kh1 {[%clk 0:02:56]}  Bg4 {[%clk 0:02:16]} 12. Ng1 {[%clk 0:02:50]}  Rc8 {[%clk 0:01:58]} 13. Bd2 {[%clk 0:02:25]}  Be6 {[%clk 0:01:44]} 14. fxe5 {[%clk 0:02:12]}  dxe5 {[%clk 0:01:40]} 15. Bb4 {[%clk 0:01:50]}  Re8 {[%clk 0:01:34]} 16. Bb5 {[%clk 0:01:49]}  Bd7 {[%clk 0:01:25]} 17. Bxd7 {[%clk 0:01:47]}  Qxd7 {[%clk 0:01:23]} 18. Rc1 {[%clk 0:01:34]}  Qa4 {[%clk 0:01:23]} 19. b3 {[%clk 0:01:20]}  Qxa2 {[%clk 0:01:21]} 20. Ra1 {[%clk 0:01:19]}  Qxc2 {[%clk 0:01:21]} 21. Rxa7 {[%clk 0:01:16]}  Rc7 {[%clk 0:00:54]} 22. Bd6 {[%clk 0:01:01]}  Rd7 {[%clk 0:00:54]} 23. Qb4 {[%clk 0:00:50]}  Qxd3 {[%clk 0:00:54]} 24. Rf3 {[%clk 0:00:43]}  Qxe4 {[%clk 0:00:46]} 25. Qb5 {[%clk 0:00:31]}  Qc6 {[%clk 0:00:26]} 26. Qxc6 {[%clk 0:00:28]}  bxc6 {[%clk 0:00:26]} 27. Rxd7 {[%clk 0:00:24]}  Nxd7 {[%clk 0:00:26]} 28. Ne2 {[%clk 0:00:22]}  f5 {[%clk 0:00:23]} 29. Rf1 {[%clk 0:00:19]}  d3 {[%clk 0:00:22]} 30. Nc3 {[%clk 0:00:19]}  e4 {[%clk 0:00:22]} 31. Na4 {[%clk 0:00:18]}  e3 {[%clk 0:00:21]} 32. Bf4 {[%clk 0:00:17]}  h6 {[%clk 0:00:16]} 33. Kg1 {[%clk 0:00:16]}  g5 {[%clk 0:00:16]} 34. Bd6 {[%clk 0:00:16]}  f4 {[%clk 0:00:16]} 35. Rc1 {[%clk 0:00:12]}  Bd4 {[%clk 0:00:15]} 36. Kf1 {[%clk 0:00:12]}  d2 {[%clk 0:00:13]} 37. Rd1 {[%clk 0:00:12]}  e2# {[%clk 0:00:14]} 0-1


[Site "https://www.chess.com"]

[Event "Early Titled Tuesday Blitz | February 8 2022"]
[White "Volkov, Maksim"]
[Black "Krzywda, Andrzej"]
[WhiteFideId "54123070"]
[BlackFideId "1114565"]
[WhiteElo "2081"]
[BlackElo "2098"]
[Result "1/2-1/2"]
[Round "10"]
[TimeControl "180+1"]
[Date "2022.02.08"]
[WhiteClock "0:00:12"]
[BlackClock "0:00:06"]

1. d4 {[%clk 0:03:00]}  Nf6 {[%clk 0:02:59]} 2. c4 {[%clk 0:02:59]}  c5 {[%clk 0:02:59]} 3. d5 {[%clk 0:02:58]}  b5 {[%clk 0:03:00]} 4. Nf3 {[%clk 0:02:54]}  Bb7 {[%clk 0:03:00]} 5. Bg5 {[%clk 0:02:46]}  Qb6 {[%clk 0:02:46]} 6. Nc3 {[%clk 0:02:39]}  bxc4 {[%clk 0:02:42]} 7. Qd2 {[%clk 0:02:28]}  e6 {[%clk 0:02:29]} 8. dxe6 {[%clk 0:02:23]}  dxe6 {[%clk 0:02:27]} 9. e3 {[%clk 0:02:19]}  Nc6 {[%clk 0:02:21]} 10. Bxc4 {[%clk 0:02:17]}  Rd8 {[%clk 0:02:15]} 11. Qe2 {[%clk 0:02:07]}  Be7 {[%clk 0:02:10]} 12. O-O {[%clk 0:02:07]}  O-O {[%clk 0:02:10]} 13. Rfd1 {[%clk 0:02:06]}  Na5 {[%clk 0:02:03]} 14. Bb5 {[%clk 0:02:03]}  a6 {[%clk 0:01:48]} 15. Ba4 {[%clk 0:02:02]}  Bxf3 {[%clk 0:01:41]} 16. gxf3 {[%clk 0:02:01]}  Nc6 {[%clk 0:01:40]} 17. Kh1 {[%clk 0:01:54]}  Nb4 {[%clk 0:01:36]} 18. Ne4 {[%clk 0:01:42]}  Nbd5 {[%clk 0:01:31]} 19. Rg1 {[%clk 0:01:42]}  Kh8 {[%clk 0:01:30]} 20. Rad1 {[%clk 0:01:31]}  Qb4 {[%clk 0:01:23]} 21. Qc2 {[%clk 0:01:23]}  Nxe4 {[%clk 0:01:14]} 22. fxe4 {[%clk 0:01:21]}  Bxg5 {[%clk 0:01:08]} 23. exd5 {[%clk 0:01:08]}  Bf6 {[%clk 0:01:03]} 24. Bb3 {[%clk 0:01:07]}  exd5 {[%clk 0:00:49]} 25. Rxd5 {[%clk 0:01:00]}  Rxd5 {[%clk 0:00:42]} 26. Bxd5 {[%clk 0:01:00]}  Rd8 {[%clk 0:00:42]} 27. Bxf7 {[%clk 0:00:58]}  Qb7+ {[%clk 0:00:42]} 28. e4 {[%clk 0:00:52]}  Qxf7 {[%clk 0:00:41]} 29. Qxc5 {[%clk 0:00:52]}  Qb7 {[%clk 0:00:38]} 30. f3 {[%clk 0:00:48]}  Qxb2 {[%clk 0:00:37]} 31. Qc4 {[%clk 0:00:44]}  Qf2 {[%clk 0:00:33]} 32. Rf1 {[%clk 0:00:41]}  Qd2 {[%clk 0:00:21]} 33. Qxa6 {[%clk 0:00:39]}  Qd3 {[%clk 0:00:17]} 34. Qxd3 {[%clk 0:00:38]}  Rxd3 {[%clk 0:00:18]} 35. Kg2 {[%clk 0:00:35]}  Ra3 {[%clk 0:00:18]} 36. Rf2 {[%clk 0:00:34]}  h5 {[%clk 0:00:17]} 37. f4 {[%clk 0:00:28]}  Bd4 {[%clk 0:00:16]} 38. Re2 {[%clk 0:00:28]}  Kg8 {[%clk 0:00:14]} 39. e5 {[%clk 0:00:27]}  Kf7 {[%clk 0:00:14]} 40. f5 {[%clk 0:00:16]}  Ra5 {[%clk 0:00:14]} 41. e6+ {[%clk 0:00:16]}  Ke7 {[%clk 0:00:14]} 42. Rd2 {[%clk 0:00:17]}  Ra4 {[%clk 0:00:08]} 43. Kf3 {[%clk 0:00:16]}  h4 {[%clk 0:00:05]} 44. h3 {[%clk 0:00:16]}  Bc5 {[%clk 0:00:03]} 45. Rd7+ {[%clk 0:00:15]}  Kf6 {[%clk 0:00:04]} 46. Rf7+ {[%clk 0:00:16]}  Ke5 {[%clk 0:00:04]} 47. e7 {[%clk 0:00:15]}  Bxe7 {[%clk 0:00:04]} 48. Rxe7+ {[%clk 0:00:16]}  Kxf5 {[%clk 0:00:04]} 49. Rxg7 {[%clk 0:00:13]}  Ra3+ {[%clk 0:00:05]} 50. Kg2 {[%clk 0:00:13]}  Rxa2+ {[%clk 0:00:06]} 51. Kh1 {[%clk 0:00:13]}  Kf4 {[%clk 0:00:06]} 52. Rg4+ {[%clk 0:00:12]}  Kf3 {[%clk 0:00:06]} 53. Rg8 {[%clk 0:00:12]}  Ra1+ {[%clk 0:00:06]} 54. Kh2 {[%clk 0:00:12]}  Ra2+ {[%clk 0:00:07]} 55. Kh1 {[%clk 0:00:12]}  Ra3 {[%clk 0:00:06]} 56. Kh2 {[%clk 0:00:12]}  Ra2+ {[%clk 0:00:06]} 57. Kh1 {[%clk 0:00:12]} 1/2-1/2


[Site "https://www.chess.com"]

[Event "Early Titled Tuesday Blitz | February 8 2022"]
[White "Xiong, Jeffery"]
[Black "Sanal, Vahap"]
[WhiteFideId "2047640"]
[BlackFideId "6300545"]
[WhiteElo "2727"]
[BlackElo "2603"]
[Result "0-1"]
[Round "10"]
[TimeControl "180+1"]
[Date "2022.02.08"]
[WhiteClock "0:00:09"]
[BlackClock "0:00:04"]

1. d4 {[%clk 0:03:00]}  Nf6 {[%clk 0:02:58]} 2. Nf3 {[%clk 0:03:01]}  g6 {[%clk 0:02:57]} 3. Nbd2 {[%clk 0:03:01]}  Bg7 {[%clk 0:02:57]} 4. e4 {[%clk 0:03:01]}  d6 {[%clk 0:02:58]} 5. Be2 {[%clk 0:03:00]}  O-O {[%clk 0:02:58]} 6. O-O {[%clk 0:03:01]}  Nbd7 {[%clk 0:02:57]} 7. c3 {[%clk 0:02:48]}  e5 {[%clk 0:02:57]} 8. Re1 {[%clk 0:02:49]}  Re8 {[%clk 0:02:57]} 9. Qc2 {[%clk 0:02:43]}  b6 {[%clk 0:02:57]} 10. a4 {[%clk 0:02:43]}  a5 {[%clk 0:02:55]} 11. Bb5 {[%clk 0:02:43]}  Bb7 {[%clk 0:02:54]} 12. d5 {[%clk 0:02:43]}  Rf8 {[%clk 0:02:53]} 13. b4 {[%clk 0:02:43]}  Nh5 {[%clk 0:02:49]} 14. Nc4 {[%clk 0:02:33]}  h6 {[%clk 0:02:41]} 15. Rb1 {[%clk 0:02:27]}  f5 {[%clk 0:02:35]} 16. bxa5 {[%clk 0:02:24]}  fxe4 {[%clk 0:02:34]} 17. Qxe4 {[%clk 0:02:24]}  Ndf6 {[%clk 0:02:23]} 18. Qxg6 {[%clk 0:02:24]}  Bxd5 {[%clk 0:02:23]} 19. axb6 {[%clk 0:02:16]}  c6 {[%clk 0:02:16]} 20. b7 {[%clk 0:02:13]}  Rb8 {[%clk 0:02:13]} 21. Ba6 {[%clk 0:02:13]}  Bf7 {[%clk 0:02:04]} 22. Qc2 {[%clk 0:02:07]}  Bd5 {[%clk 0:01:59]} 23. Ncd2 {[%clk 0:01:07]}  Nf4 {[%clk 0:01:47]} 24. Bc4 {[%clk 0:01:06]}  Bxc4 {[%clk 0:01:38]} 25. Nxc4 {[%clk 0:01:06]}  N6d5 {[%clk 0:01:33]} 26. a5 {[%clk 0:00:54]}  Qd7 {[%clk 0:01:33]} 27. Bxf4 {[%clk 0:00:51]}  Nxf4 {[%clk 0:01:33]} 28. Qb3 {[%clk 0:00:44]}  Kh8 {[%clk 0:01:32]} 29. Ne3 {[%clk 0:00:44]}  e4 {[%clk 0:01:19]} 30. Nh4 {[%clk 0:00:39]}  Qd8 {[%clk 0:00:51]} 31. Nhf5 {[%clk 0:00:35]}  Qg5 {[%clk 0:00:47]} 32. h4 {[%clk 0:00:24]}  Qg6 {[%clk 0:00:47]} 33. Ng3 {[%clk 0:00:21]}  Nd3 {[%clk 0:00:40]} 34. h5 {[%clk 0:00:18]}  Qg5 {[%clk 0:00:40]} 35. Nxe4 {[%clk 0:00:18]}  Qf4 {[%clk 0:00:35]} 36. a6 {[%clk 0:00:15]}  Nxf2 {[%clk 0:00:16]} 37. a7 {[%clk 0:00:14]}  Nxe4 {[%clk 0:00:15]} 38. axb8=Q {[%clk 0:00:07]}  Qf2+ {[%clk 0:00:15]} 39. Kh1 {[%clk 0:00:07]}  Rxb8 {[%clk 0:00:10]} 40. Qe6 {[%clk 0:00:07]}  Qh4+ {[%clk 0:00:06]} 41. Kg1 {[%clk 0:00:08]}  Qf2+ {[%clk 0:00:07]} 42. Kh1 {[%clk 0:00:08]}  Ng3+ {[%clk 0:00:07]} 43. Kh2 {[%clk 0:00:08]}  Be5 {[%clk 0:00:05]} 44. Qxh6+ {[%clk 0:00:08]}  Kg8 {[%clk 0:00:05]} 45. Qg6+ {[%clk 0:00:08]}  Kf8 {[%clk 0:00:06]} 46. Ng4 {[%clk 0:00:08]}  Nf1+ {[%clk 0:00:05]} 47. Kh1 {[%clk 0:00:08]}  Ng3+ {[%clk 0:00:05]} 48. Kh2 {[%clk 0:00:09]}  Ne2+ {[%clk 0:00:04]} 0-1


[Site "https://www.chess.com"]

[Event "Early Titled Tuesday Blitz | February 8 2022"]
[White "Yonal, Timur"]
[Black "Alimpic, Aleksa"]
[WhiteFideId "44115725"]
[BlackFideId "974323"]
[WhiteElo "1762"]
[BlackElo "2131"]
[Result "1-0"]
[Round "10"]
[TimeControl "180+1"]
[Date "2022.02.08"]
[WhiteClock "0:00:10"]
[BlackClock "0:00:07"]

1. e4 {[%clk 0:02:50]}  g6 {[%clk 0:02:57]} 2. d4 {[%clk 0:02:48]}  Bg7 {[%clk 0:02:57]} 3. c3 {[%clk 0:02:47]}  c6 {[%clk 0:02:54]} 4. Nf3 {[%clk 0:02:43]}  d5 {[%clk 0:02:54]} 5. exd5 {[%clk 0:02:35]}  cxd5 {[%clk 0:02:55]} 6. Bd3 {[%clk 0:02:35]}  Nc6 {[%clk 0:02:55]} 7. O-O {[%clk 0:02:32]}  Nf6 {[%clk 0:02:54]} 8. Re1 {[%clk 0:02:30]}  Bf5 {[%clk 0:02:50]} 9. Bf1 {[%clk 0:02:24]}  O-O {[%clk 0:02:44]} 10. h3 {[%clk 0:02:16]}  Re8 {[%clk 0:02:36]} 11. Bf4 {[%clk 0:02:10]}  Ne4 {[%clk 0:02:24]} 12. Nbd2 {[%clk 0:02:04]}  Qd7 {[%clk 0:02:11]} 13. Nxe4 {[%clk 0:01:24]}  Bxe4 {[%clk 0:02:07]} 14. Ng5 {[%clk 0:01:18]}  Qf5 {[%clk 0:01:32]} 15. Be3 {[%clk 0:00:41]}  h6 {[%clk 0:01:19]} 16. Nxe4 {[%clk 0:00:38]}  dxe4 {[%clk 0:01:20]} 17. Be2 {[%clk 0:00:37]}  Rad8 {[%clk 0:01:13]} 18. Qb3 {[%clk 0:00:35]}  Na5 {[%clk 0:00:45]} 19. Qa4 {[%clk 0:00:25]}  b6 {[%clk 0:00:39]} 20. b4 {[%clk 0:00:15]}  Nc6 {[%clk 0:00:35]} 21. Qxc6 {[%clk 0:00:12]}  e5 {[%clk 0:00:20]} 22. dxe5 {[%clk 0:00:11]}  Bxe5 {[%clk 0:00:20]} 23. Bd4 {[%clk 0:00:11]}  Rd6 {[%clk 0:00:08]} 24. Qxe8+ {[%clk 0:00:10]}  Kh7 {[%clk 0:00:07]} 25. Bxe5 {[%clk 0:00:10]} 1-0


[Site "https://www.chess.com"]

[Event "Early Titled Tuesday Blitz | February 8 2022"]
[White "Zaichenko, Daria"]
[Black "Kiseleva, Arina"]
[WhiteFideId "4197453"]
[BlackFideId "4164989"]
[WhiteElo "2039"]
[BlackElo "1866"]
[Result "1-0"]
[Round "10"]
[TimeControl "180+1"]
[Date "2022.02.08"]
[WhiteClock "0:01:52"]
[BlackClock "0:00:25"]

1. e4 {[%clk 0:03:00]}  c6 {[%clk 0:02:56]} 2. d4 {[%clk 0:02:58]}  d5 {[%clk 0:02:57]} 3. Nc3 {[%clk 0:02:58]}  dxe4 {[%clk 0:02:56]} 4. Nxe4 {[%clk 0:02:58]}  Nf6 {[%clk 0:02:57]} 5. Nxf6+ {[%clk 0:02:56]}  exf6 {[%clk 0:02:58]} 6. Nf3 {[%clk 0:02:55]}  Bg4 {[%clk 0:02:45]} 7. c3 {[%clk 0:02:54]}  Bd6 {[%clk 0:02:40]} 8. Bd3 {[%clk 0:02:53]}  Qe7+ {[%clk 0:02:35]} 9. Be3 {[%clk 0:02:46]}  Bf4 {[%clk 0:02:20]} 10. Qd2 {[%clk 0:02:45]}  Bxe3 {[%clk 0:02:17]} 11. fxe3 {[%clk 0:02:45]}  Na6 {[%clk 0:02:12]} 12. O-O-O {[%clk 0:02:44]}  Nc7 {[%clk 0:02:10]} 13. e4 {[%clk 0:02:43]}  O-O-O {[%clk 0:01:54]} 14. h3 {[%clk 0:02:42]}  Be6 {[%clk 0:01:48]} 15. Kb1 {[%clk 0:02:39]}  g6 {[%clk 0:01:41]} 16. Rhe1 {[%clk 0:02:37]}  Kb8 {[%clk 0:01:39]} 17. c4 {[%clk 0:02:32]}  Bc8 {[%clk 0:01:31]} 18. e5 {[%clk 0:02:28]}  f5 {[%clk 0:01:27]} 19. Bc2 {[%clk 0:02:23]}  f6 {[%clk 0:01:13]} 20. Qa5 {[%clk 0:02:13]}  fxe5 {[%clk 0:01:06]} 21. Nxe5 {[%clk 0:02:11]}  Qf6 {[%clk 0:00:58]} 22. Ba4 {[%clk 0:02:06]}  Rhe8 {[%clk 0:00:53]} 23. Qb4 {[%clk 0:02:05]}  Ka8 {[%clk 0:00:50]} 24. a3 {[%clk 0:01:59]}  Na6 {[%clk 0:00:33]} 25. Qa5 {[%clk 0:01:57]}  Re7 {[%clk 0:00:25]} 26. Qxd8 {[%clk 0:01:52]} 1-0


[Site "https://www.chess.com"]